bitfinex/quotes_BTCUSD_20250204
["timestamp","ask_amount","ask_price","bid_price","bid_amount"]
[1738691684600,0.07804756,99147.0,99146.0,0.01]
[1738691684796,0.22933756,99147.0,99146.0,0.01]
[1738691685015,0.00024756,99147.0,99146.0,0.26367706]
[1738691685692,0.00024756,99147.0,99146.0,0.52318169]
[1738691689238,0.00024756,99147.0,99146.0,0.43508169]
[1738691689470,0.00024756,99147.0,99146.0,0.44508169]
[1738691689680,0.00024756,99147.0,99146.0,0.43508169]
[1738691691255,0.00024756,99147.0,99146.0,0.44508169]
[1738691691949,0.00024756,99147.0,99146.0,0.43508169]
[1738691692250,0.00024756,99147.0,99146.0,0.44508169]
[1738691694018,5.6e-07,99147.0,99146.0,0.85998169]
[1738691694171,5.6e-07,99147.0,99146.0,0.90588169]
[1738691695011,5.6e-07,99147.0,99146.0,0.92888169]
[1738691698499,5.6e-07,99147.0,99146.0,0.93888169]
[1738691698701,0.0001069,99166.0,99156.0,0.399076]
[1738691698702,2.7e-07,99157.0,99156.0,0.399076]
[1738691698910,2.7e-07,99157.0,99156.0,0.60216569]
[1738691699577,1.7e-07,99160.0,99159.0,0.344272]
[1738691699723,1.7e-07,99160.0,99159.0,0.47806169]
[1738691700135,0.0001069,99166.0,99165.0,0.344263]
[1738691700340,0.01,99162.0,99125.0,0.0819]
[1738691700550,0.0475069,99166.0,99138.0,0.09179791]
[1738691700551,0.01,99158.0,99138.0,0.09179791]
[1738691700751,0.01,99157.0,99138.0,0.09179791]
[1738691700967,1.5,99156.0,99138.0,0.09179791]
[1738691701149,1.5,99156.0,99140.0,0.201734]
[1738691701528,0.01,99157.0,99139.0,0.201736]
[1738691701729,0.01,99157.0,99142.0,0.10238506]
[1738691701935,0.01,99157.0,99142.0,0.25368206]
[1738691702087,0.01,99157.0,99142.0,0.10238506]
[1738691702788,0.01,99157.0,99142.0,0.25368206]
[1738691703290,0.01,99152.0,99142.0,0.10238506]
[1738691704775,0.0768,99155.0,99143.0,0.00121021]
[1738691704978,0.0823,99165.0,99156.0,0.151276]
[1738691705179,0.0823,99165.0,99157.0,0.10238506]
[1738691707374,0.01,99154.0,99136.0,0.16973235]
[1738691707540,0.01,99154.0,99137.0,0.30412506]
[1738691707740,0.01,99154.0,99138.0,0.151304]
[1738691707939,0.01,99154.0,99136.0,0.16987311]
[1738691707940,0.01,99154.0,99139.0,0.25368706]
[1738691708142,0.01,99154.0,99139.0,0.10238506]
[1738691708792,0.3294,99153.0,99142.0,0.00022428]
[1738691709023,0.0875,99143.0,99142.0,0.00022428]
[1738691709613,0.0775,99143.0,99142.0,0.00022428]
[1738691710125,0.0875,99143.0,99142.0,0.00022428]
[1738691710624,0.0775,99143.0,99142.0,0.00022428]
[1738691710834,0.531108,99153.0,99142.0,0.00022428]
[1738691710835,0.01,99151.0,99142.0,0.00022428]
[1738691711179,0.01,99151.0,99143.0,0.10238506]
[1738691711785,0.01,99151.0,99142.0,0.00022428]
[1738691711786,0.01,99143.0,99142.0,0.00022428]
[1738691711988,0.01,99147.0,99142.0,0.00022428]
[1738691712421,0.01,99162.0,99154.0,0.151278]
[1738691712602,0.01,99162.0,99154.0,0.10238506]
[1738691712799,0.0762068,99165.0,99154.0,0.10238506]
[1738691713028,0.0862068,99165.0,99155.0,0.00121008]
[1738691713231,0.01,99163.0,99155.0,0.10238506]
[1738691713433,0.01,99163.0,99158.0,0.151273]
[1738691713631,0.01,99163.0,99156.0,0.151276]
[1738691713805,0.01,99163.0,99156.0,0.10238506]
[1738691714172,0.01,99163.0,99157.0,0.151275]
[1738691714306,0.01,99163.0,99156.0,0.10238506]
[1738691716254,0.151267,99162.0,99156.0,0.10238506]
[1738691716413,0.01,99155.0,99147.0,0.151289]
[1738691716666,0.01,99155.0,99147.0,0.10238506]
[1738691717094,0.01,99149.0,99142.0,0.00022428]
[1738691717303,0.211704,99155.0,99142.0,0.00022428]
[1738691717505,0.151276,99157.0,99142.0,0.00022428]
[1738691717723,0.01,99148.0,99143.0,0.151296]
[1738691717932,0.01,99148.0,99142.0,0.15152228]
[1738691718278,0.01,99148.0,99143.0,0.151296]
[1738691718479,0.01,99148.0,99142.0,0.00022428]
[1738691718656,0.01,99148.0,99145.0,0.151293]
[1738691719403,0.01,99148.0,99143.0,0.151295]
[1738691719656,0.01,99148.0,99142.0,0.00022428]
[1738691720273,0.01,99148.0,99142.0,0.15152128]
[1738691720797,0.3294,99159.0,99153.0,0.15128]
[1738691720922,0.01,99158.0,99154.0,0.151279]
[1738691721122,0.01,99158.0,99147.0,0.00022428]
[1738691721351,0.01,99158.0,99153.0,0.151281]
[1738691721547,0.3295068,99159.0,99158.0,0.151273]
[1738691721973,0.0001068,99159.0,99158.0,0.151273]
[1738691722178,0.0001068,99159.0,99158.0,0.25365806]
[1738691722379,0.0001068,99159.0,99158.0,0.151273]
[1738691722760,0.0001068,99159.0,99158.0,0.2548681]
[1738691722963,0.0001068,99159.0,99158.0,0.25365806]
[1738691724151,0.0001068,99159.0,99158.0,0.33605806]
[1738691724321,0.0001068,99159.0,99158.0,0.53535806]
[1738691724706,0.0001068,99159.0,99158.0,0.56669787]
[1738691724900,0.0001068,99159.0,99158.0,0.58969787]
[1738691732952,0.0001068,99159.0,99158.0,0.61938381]
[1738691735227,0.0001068,99159.0,99158.0,0.46468381]
[1738691735415,0.0001068,99159.0,99158.0,0.433344]
[1738691736870,0.01,99192.0,99159.0,0.15]
[1738691737073,0.01,99192.0,99156.0,0.01021046]
[1738691737074,0.01,99195.0,99171.0,0.15]
[1738691737276,0.01,99196.0,99172.0,0.10359478]
[1738691737658,0.01,99196.0,99186.0,0.15123]
[1738691737811,0.01,99196.0,99187.0,0.151228]
[1738691738017,0.01,99196.0,99188.0,0.151227]
[1738691738466,0.04754074,99189.0,99186.0,0.25361406]
[1738691738680,0.04754074,99189.0,99187.0,0.151228]
[1738691738887,0.04754074,99189.0,99186.0,0.10238506]
[1738691739713,0.04754074,99189.0,99188.0,0.151227]
[1738691739919,0.00014074,99189.0,99188.0,0.25361206]
[1738691740639,0.00014074,99189.0,99188.0,0.10238506]
[1738691741009,0.01,99185.0,99180.0,0.15124]
[1738691741161,0.01,99185.0,99180.0,0.10238506]
[1738691741373,0.01,99185.0,99180.0,0.25362506]
[1738691741979,0.01,99185.0,99180.0,0.10238506]
[1738691742900,0.01,99185.0,99181.0,0.151237]
[1738691743305,0.01,99185.0,99183.0,0.151235]
[1738691744286,0.01,99185.0,99180.0,0.30403706]
[1738691744635,0.0101068,99185.0,99181.0,0.151238]
[1738691744838,0.0101068,99185.0,99182.0,0.151237]
[1738691745037,0.0101068,99185.0,99180.0,0.10238506]
[1738691745360,0.0101068,99185.0,99180.0,0.25362306]
[1738691745540,0.0101068,99185.0,99180.0,0.10238506]
[1738691746037,0.0001068,99185.0,99181.0,0.201651]
[1738691746242,0.0001068,99185.0,99184.0,0.151234]
[1738691746449,0.0101068,99185.0,99181.0,0.201651]
[1738691746649,0.0101068,99185.0,99180.0,0.25362306]
[1738691747014,0.0101068,99185.0,99180.0,0.10238506]
[1738691747635,0.0101068,99185.0,99180.0,0.25362306]
[1738691748835,0.151235,99184.0,99180.0,0.10238506]
[1738691749035,0.0101068,99185.0,99180.0,0.10238506]
[1738691751193,0.0101068,99185.0,99180.0,0.25362506]
[1738691751934,0.0451,99179.0,99172.0,0.151251]
[1738691752137,0.0451,99179.0,99174.0,0.151249]
[1738691752343,0.0451,99179.0,99175.0,0.10238506]
[1738691752891,0.01,99175.0,99158.0,0.00022428]
[1738691753119,0.01,99162.0,99159.0,0.151271]
[1738691753317,0.01,99167.0,99162.0,0.151267]
[1738691753543,0.01,99164.0,99160.0,0.151269]
[1738691753857,0.01,99161.0,99158.0,0.10260934]
[1738691756104,0.01,99161.0,99158.0,0.25388234]
[1738691756272,0.01,99161.0,99158.0,0.10260934]
[1738691758310,0.15127,99160.0,99158.0,0.10260934]
[1738691758516,0.01,99159.0,99158.0,0.00022428]
[1738691758692,0.208372,99159.0,99158.0,0.00022428]
[1738691759521,0.6273855,99159.0,99158.0,0.00022428]
[1738691759721,0.7100855,99159.0,99158.0,0.00022428]
[1738691759949,0.98547056,99159.0,99158.0,0.00022428]
[1738691760149,2.48547056,99159.0,99158.0,0.00022428]
[1738691760914,2.48547056,99159.0,99147.0,0.00022428]
[1738691760915,0.464088,99148.0,99147.0,0.00022428]
[1738691761164,0.425796,99143.0,99114.0,0.08059438]
[1738691761403,0.56978106,99143.0,99114.0,0.08059438]
[1738691765396,0.57991867,99143.0,99114.0,0.08059438]
[1738691765598,0.90931867,99143.0,99114.0,0.08059438]
[1738691766412,0.90931867,99143.0,99114.0,0.08180498]
[1738691766622,0.77533361,99143.0,99123.0,0.151325]
[1738691766799,0.490696,99143.0,99129.0,0.151317]
[1738691767034,0.490696,99143.0,99130.0,0.151316]
[1738691767191,0.3394,99143.0,99128.0,0.00121037]
[1738691767617,0.3294,99143.0,99134.0,0.201747]
[1738691767779,0.3394,99143.0,99137.0,0.151305]
[1738691767980,0.490696,99143.0,99132.0,0.151312]
[1738691768220,0.490696,99143.0,99127.0,0.00022407]
[1738691768840,0.490696,99143.0,99128.0,0.151318]
[1738691769047,0.55610595,99143.0,99127.0,0.00022407]
[1738691769303,0.513696,99143.0,99127.0,0.00022407]
[1738691769535,0.490696,99143.0,99127.0,0.00022407]
[1738691769938,0.490696,99143.0,99130.0,0.151316]
[1738691770143,0.490696,99143.0,99127.0,0.00022407]
[1738691770341,1.990696,99143.0,99127.0,0.00022407]
[1738691770843,1.990696,99143.0,99129.0,0.151317]
[1738691771025,1.990696,99143.0,99127.0,0.00022407]
[1738691771223,1.990696,99143.0,99128.0,0.151319]
[1738691771425,1.990696,99143.0,99130.0,0.151316]
[1738691771583,1.990696,99143.0,99132.0,0.151312]
[1738691771781,1.990696,99143.0,99127.0,0.00022407]
[1738691771782,0.3394,99143.0,99133.0,0.2029574]
[1738691772024,0.490696,99143.0,99130.0,0.201753]
[1738691772201,0.490696,99143.0,99133.0,0.151311]
[1738691772398,0.3394,99143.0,99133.0,0.201749]
[1738691772598,0.3294,99143.0,99133.0,0.201749]
[1738691772807,0.490696,99143.0,99135.0,0.201744]
[1738691773582,0.490696,99143.0,99136.0,0.151306]
[1738691773583,0.3394,99143.0,99136.0,0.151306]
[1738691774090,0.490696,99143.0,99130.0,0.201753]
[1738691774246,0.490696,99143.0,99134.0,0.151309]
[1738691774852,0.490696,99143.0,99128.0,0.00121036]
[1738691775056,0.490696,99143.0,99135.0,0.151307]
[1738691775448,0.490696,99143.0,99132.0,0.151312]
[1738691775650,0.490696,99143.0,99130.0,0.201753]
[1738691775978,0.490696,99143.0,99133.0,0.151311]
[1738691776313,1.990696,99143.0,99132.0,0.151313]
[1738691776507,1.990696,99143.0,99132.0,0.201749]
[1738691776717,1.990696,99143.0,99127.0,0.20198507]
[1738691776930,1.990696,99143.0,99128.0,0.00121036]
[1738691777174,1.990696,99143.0,99127.0,0.20198507]
[1738691777572,1.990696,99143.0,99127.0,0.00022407]
[1738691777745,1.990696,99143.0,99127.0,0.20319443]
[1738691777947,1.990696,99143.0,99133.0,0.15131]
[1738691778154,1.990696,99143.0,99129.0,0.151317]
[1738691778588,1.990696,99143.0,99129.0,0.201757]
[1738691779128,0.490696,99143.0,99133.0,0.151311]
[1738691779325,0.490696,99143.0,99127.0,0.00022407]
[1738691779604,2.071396,99143.0,99127.0,0.00022407]
[1738691780024,1.990696,99143.0,99127.0,0.00022407]
[1738691780229,1.990696,99143.0,99130.0,0.151315]
[1738691780577,1.990696,99143.0,99129.0,0.151317]
[1738691780782,1.991696,99143.0,99127.0,0.20198307]
[1738691780980,1.991696,99143.0,99131.0,0.151314]
[1738691781187,1.991696,99143.0,99142.0,0.15152228]
[1738691781188,0.001,99143.0,99142.0,0.15152228]
[1738691781399,0.001,99143.0,99142.0,0.25511763]
[1738691781600,0.001,99143.0,99142.0,0.25390734]
[1738691782232,0.001,99143.0,99142.0,0.33550734]
[1738691783067,0.0001068,99147.0,99146.0,0.151292]
[1738691783273,0.0001068,99147.0,99146.0,0.25367706]
[1738691784847,0.0001068,99147.0,99142.0,0.00022428]
[1738691784848,0.01,99144.0,99142.0,0.00022428]
[1738691785055,0.0001068,99147.0,99143.0,0.10238506]
[1738691785230,0.0001068,99147.0,99146.0,0.151292]
[1738691785427,0.0001068,99147.0,99146.0,0.25367706]
[1738691786285,0.0001068,99147.0,99146.0,0.10238506]
[1738691787064,0.0001068,99147.0,99146.0,0.25367706]
[1738691789900,0.0001068,99147.0,99146.0,0.38047706]
[1738691790107,0.0001068,99147.0,99146.0,0.53047706]
[1738691790318,0.01,99189.0,99147.0,0.15]
[1738691790537,0.01,99195.0,99184.0,0.151234]
[1738691790738,0.00019196,99185.0,99184.0,0.25482875]
[1738691790951,0.00019196,99185.0,99184.0,0.25361906]
[1738691799815,0.00019196,99185.0,99169.0,0.01026748]
[1738691799816,0.01,99178.0,99169.0,0.01026748]
[1738691800070,0.01,99175.0,99174.0,0.25363406]
[1738691800496,1.51,99175.0,99174.0,0.25363406]
[1738691800675,0.01,99175.0,99174.0,0.25363406]
[1738691801220,0.01,99175.0,99174.0,0.10238506]
[1738691801622,0.01,99175.0,99156.0,0.10639811]
[1738691801623,0.01,99164.0,99161.0,0.151268]
[1738691801831,0.01,99164.0,99163.0,0.151266]
[1738691802102,0.01,99160.0,99159.0,0.151272]
[1738691802225,0.01,99160.0,99159.0,0.25365706]
[1738691802839,0.01,99160.0,99159.0,0.10238506]
[1738691803376,0.01,99160.0,99141.0,0.08]
[1738691803377,0.01,99151.0,99141.0,0.08]
[1738691803579,0.01,99151.0,99150.0,0.151285]
[1738691803783,0.01,99151.0,99150.0,0.25367006]
[1738691811106,0.00933209,99157.0,99156.0,0.151276]
[1738691811249,0.00933209,99157.0,99156.0,0.25366106]
[1738691814144,0.00933209,99157.0,99156.0,0.10238506]
[1738691814351,0.00933209,99152.0,99151.0,0.151284]
[1738691814579,0.00933209,99152.0,99151.0,0.25366906]
[1738691817618,0.00943889,99152.0,99151.0,0.25366906]
[1738691824204,0.0001068,99152.0,99151.0,0.25366906]
[1738691826105,0.0001068,99152.0,99151.0,0.32996906]
[1738691826309,0.0001068,99152.0,99151.0,0.37606906]
[1738691828696,0.0001068,99152.0,99151.0,0.38623746]
[1738691829296,0.0001068,99152.0,99151.0,0.53623746]
[1738691829520,0.0001068,99152.0,99151.0,0.56759212]
[1738691830313,8e-07,99152.0,99151.0,0.62027806]
[1738691831944,0.00443969,99187.0,99186.0,0.151231]
[1738691832180,0.00458043,99187.0,99186.0,0.25361606]
[1738691833105,0.00014074,99187.0,99186.0,0.25361606]
[1738691833306,0.00558043,99187.0,99186.0,0.25361606]
[1738691834430,0.00114074,99187.0,99186.0,0.25361606]
[1738691837993,0.00014074,99187.0,99186.0,0.25361606]
[1738691838896,0.00014074,99187.0,99186.0,0.24861606]
[1738691840339,0.00024754,99187.0,99186.0,0.24861606]
[1738691842570,0.00443969,99181.0,99177.0,0.201659]
[1738691842821,0.00443969,99177.0,99176.0,0.151246]
[1738691843029,0.00443969,99177.0,99173.0,0.201665]
[1738691843241,1.651235,99183.0,99161.0,0.201692]
[1738691843242,0.00443969,99168.0,99161.0,0.201692]
[1738691843461,0.00443969,99167.0,99166.0,0.151261]
[1738691844295,0.00443969,99167.0,99166.0,0.25364606]
[1738691844730,0.00443969,99175.0,99170.0,0.151255]
[1738691844885,0.00443969,99171.0,99170.0,0.151255]
[1738691845094,0.00443969,99171.0,99170.0,0.25364006]
[1738691846721,0.00443969,99180.0,99179.0,0.151241]
[1738691846938,0.00443969,99180.0,99179.0,0.25362606]
[1738691847515,0.00443969,99183.0,99179.0,0.10238506]
[1738691847724,0.00443969,99183.0,99178.0,0.201656]
[1738691847725,0.00443969,99183.0,99182.0,0.151237]
[1738691847918,0.00443969,99183.0,99182.0,0.25362206]
[1738691849135,0.00443969,99172.0,99154.0,0.0765]
[1738691849443,0.00443969,99171.0,99170.0,0.151255]
[1738691849649,0.00443969,99171.0,99170.0,0.25364006]
[1738691854035,0.00443969,99171.0,99170.0,0.10238506]
[1738691854247,0.00443969,99160.0,99159.0,0.151272]
[1738691854536,0.00443969,99160.0,99159.0,0.25365706]
[1738691855297,0.00443969,99161.0,99160.0,0.15127]
[1738691855508,0.00443969,99161.0,99160.0,0.25365506]
[1738691855709,0.00443969,99162.0,99161.0,0.151269]
[1738691855924,0.00443969,99162.0,99161.0,0.25365406]
[1738691856594,0.00443969,99166.0,99165.0,0.151263]
[1738691856783,0.00443969,99167.0,99166.0,0.151261]
[1738691856985,0.00443969,99167.0,99166.0,0.25364606]
[1738691857186,0.00443969,99170.0,99166.0,0.25364606]
[1738691857411,0.00443969,99170.0,99169.0,0.151256]
[1738691857615,0.00443969,99176.0,99169.0,0.10238506]
[1738691857819,0.00443969,99176.0,99175.0,0.151247]
[1738691858034,0.00443969,99176.0,99175.0,0.25363206]
[1738691858819,0.3294,99178.0,99177.0,0.151244]
[1738691858973,0.00443969,99183.0,99182.0,0.151237]
[1738691859174,0.00443969,99183.0,99182.0,0.25362206]
[1738691859838,0.00443969,99184.0,99183.0,0.151235]
[1738691860132,0.00443969,99184.0,99183.0,0.25362006]
[1738691861694,0.00443969,99189.0,99186.0,0.151231]
[1738691861891,0.00443969,99190.0,99186.0,0.25361606]
[1738691863470,0.0001069,99191.0,99186.0,0.25361606]
[1738691865795,0.00468723,99187.0,99186.0,0.25361606]
[1738691869625,0.00024754,99187.0,99186.0,0.25361606]
[1738691875119,0.00024754,99187.0,99186.0,0.28500601]
[1738691875644,0.00024754,99187.0,99186.0,0.36660601]
[1738691875847,0.00024754,99187.0,99186.0,0.36683029]
[1738691880016,0.00024754,99187.0,99186.0,0.28523029]
[1738691883268,0.00024754,99187.0,99186.0,0.33203029]
[1738691884028,0.00024754,99187.0,99186.0,0.56153029]
[1738691886039,0.0001069,99191.0,99190.0,0.301224]
[1738691886246,0.0001069,99191.0,99190.0,0.43499901]
[1738691886904,0.0001069,99191.0,99190.0,0.51769901]
[1738691889132,9e-07,99191.0,99190.0,0.54738495]
[1738691900991,9e-07,99191.0,99190.0,0.46468495]
[1738691901215,9e-07,99191.0,99190.0,0.28499901]
[1738691902651,0.20066359,99191.0,99190.0,0.10238506]
[1738691902788,0.20066359,99191.0,99186.0,0.00022428]
[1738691902789,0.00443969,99187.0,99186.0,0.00022428]
[1738691903178,0.00443969,99187.0,99186.0,0.25384034]
[1738691903349,0.0450009,99191.0,99190.0,0.151224]
[1738691903350,0.04944059,99191.0,99190.0,0.151224]
[1738691903495,0.04944059,99191.0,99190.0,0.25360906]
[1738691904346,0.04944059,99191.0,99190.0,0.10238506]
[1738691904557,0.04944059,99191.0,99190.0,0.25360906]
[1738691905919,0.04944059,99191.0,99190.0,0.10238506]
[1738691906322,0.04944059,99191.0,99190.0,0.25360906]
[1738691906935,0.04944059,99191.0,99190.0,0.10238506]
[1738691907074,0.04944059,99191.0,99190.0,0.25360906]
[1738691907489,0.04944059,99191.0,99190.0,0.10238506]
[1738691907692,0.04944059,99191.0,99190.0,0.25360906]
[1738691908898,0.04944059,99191.0,99190.0,0.10238506]
[1738691909319,0.00443969,99187.0,99186.0,0.00022428]
[1738691909628,0.00443969,99187.0,99186.0,0.25384034]
[1738691911850,9e-07,99191.0,99190.0,0.151224]
[1738691912038,9e-07,99191.0,99190.0,0.25360906]
[1738691917067,9e-07,99191.0,99190.0,0.27362224]
[1738691925134,9e-07,99191.0,99190.0,0.30496408]
[1738691925285,9e-07,99191.0,99190.0,0.53236408]
[1738691930163,9e-07,99191.0,99190.0,0.58961886]
[1738691933148,9e-07,99191.0,99190.0,0.58984314]
[1738691940690,9e-07,99191.0,99190.0,0.61952908]
[1738691941476,9e-07,99191.0,99190.0,0.49502908]
[1738691945269,9e-07,99191.0,99190.0,0.34502908]
[1738691945657,9e-07,99191.0,99190.0,0.30518836]
[1738691946607,0.0794009,99191.0,99190.0,0.28517518]
[1738691948149,9e-07,99191.0,99190.0,0.28517518]
[1738691954363,0.12984059,99191.0,99190.0,0.13395118]
[1738691954580,0.12984059,99191.0,99190.0,0.25383334]
[1738691955634,0.1254009,99191.0,99190.0,0.25383334]
[1738691955844,0.00444059,99191.0,99190.0,0.25383334]
[1738691956698,9e-07,99191.0,99190.0,0.25383334]
[1738691956814,0.00444059,99191.0,99190.0,0.25383334]
[1738691957936,0.12934059,99191.0,99190.0,0.25383334]
[1738691959599,0.00444059,99191.0,99190.0,0.25383334]
[1738691961130,9e-07,99191.0,99190.0,0.25383334]
[1738691961333,0.00444059,99191.0,99190.0,0.25383334]
[1738691961537,9e-07,99191.0,99190.0,0.25383334]
[1738691968308,0.00444059,99191.0,99190.0,0.25383334]
[1738691968498,0.00444059,99191.0,99190.0,0.15144828]
[1738691969376,0.00444059,99191.0,99190.0,0.25383334]
[1738691974406,0.00444059,99191.0,99190.0,0.28525138]
[1738691982016,0.00444059,99191.0,99190.0,0.18286632]
[1738691984204,0.00444059,99191.0,99190.0,0.03164232]
[1738691985009,0.00444059,99191.0,99190.0,0.00022428]
[1738691985410,0.00444059,99191.0,99190.0,0.03168689]
[1738691985863,0.00444059,99191.0,99190.0,0.00022428]
[1738691986363,0.15566359,99191.0,99190.0,0.00022428]
[1738691986567,0.23146359,99191.0,99190.0,0.00022428]
[1738691986976,0.61715733,99191.0,99190.0,0.00022428]
[1738691987178,0.79015733,99191.0,99190.0,0.00022428]
[1738691987525,0.89254239,99191.0,99190.0,0.00022428]
[1738691988393,2.40154239,99191.0,99190.0,0.00022428]
[1738691988796,2.39454239,99191.0,99190.0,0.00022428]
[1738691989035,2.39254239,99191.0,99190.0,0.00022428]
[1738691989235,2.39954239,99191.0,99190.0,0.00022428]
[1738691989437,2.39454239,99191.0,99190.0,0.00022428]
[1738691989656,2.29215733,99191.0,99190.0,0.00022428]
[1738691990824,2.29515733,99191.0,99190.0,0.00022428]
[1738691991010,2.49503711,99191.0,99190.0,0.00022428]
[1738691991160,2.49603711,99191.0,99190.0,0.00022428]
[1738691991537,2.50003711,99191.0,99190.0,0.00022428]
[1738691991924,2.29415733,99191.0,99190.0,0.00022428]
[1738691992128,2.29015733,99191.0,99190.0,0.00022428]
[1738691992275,2.29215733,99191.0,99190.0,0.00022428]
[1738691992481,2.29715733,99191.0,99190.0,0.00022428]
[1738691993816,2.29215733,99191.0,99190.0,0.00022428]
[1738691994096,2.29415733,99191.0,99190.0,0.00022428]
[1738691994430,2.29515733,99191.0,99190.0,0.00022428]
[1738691994835,2.32928921,99191.0,99190.0,0.00022428]
[1738691995037,2.29515733,99191.0,99190.0,0.00022428]
[1738691997200,2.27215733,99191.0,99190.0,0.00022428]
[1738691998122,2.27959733,99191.0,99190.0,0.00022428]
[1738691998321,2.27659733,99191.0,99190.0,0.00022428]
[1738691998665,2.27959733,99191.0,99190.0,0.00022428]
[1738691998865,2.27859733,99191.0,99190.0,0.00022428]
[1738692000206,2.27959733,99191.0,99190.0,0.00022428]
[1738692000407,2.30259733,99191.0,99190.0,0.00022428]
[1738692000622,2.40498239,99191.0,99190.0,0.00022428]
[1738692001166,2.30259733,99191.0,99190.0,0.00022428]
[1738692001297,2.27959733,99191.0,99190.0,0.00022428]
[1738692002132,2.40498239,99191.0,99190.0,0.00022428]
[1738692002338,2.50747711,99191.0,99190.0,0.00022428]
[1738692003931,2.51747711,99191.0,99190.0,0.00022428]
[1738692004392,2.41498239,99191.0,99190.0,0.00022428]
[1738692004570,2.30815764,99191.0,99190.0,0.00022428]
[1738692004769,2.31259733,99191.0,99190.0,0.00022428]
[1738692005317,0.33784059,99191.0,99190.0,0.15144828]
[1738692005521,0.02713564,99191.0,99190.0,0.15144828]
[1738692005730,0.02713564,99191.0,99190.0,0.25383334]
[1738692006321,0.02713564,99191.0,99190.0,0.30143334]
[1738692006543,0.02413564,99191.0,99190.0,0.30143334]
[1738692006765,0.00444059,99191.0,99190.0,0.00022428]
[1738692006922,0.15566359,99191.0,99190.0,0.00022428]
[1738692013079,0.23640586,99191.0,99190.0,0.00022428]
[1738692013280,0.19737894,99191.0,99190.0,0.00022428]
[1738692013484,0.27307894,99191.0,99190.0,0.00022428]
[1738692013722,1.77307894,99191.0,99190.0,0.00022428]
[1738692014510,2.035464,99191.0,99190.0,0.00022428]
[1738692014728,1.95302727,99191.0,99190.0,0.00022428]
[1738692014930,1.85432727,99191.0,99190.0,0.00022428]
[1738692015131,1.85732727,99191.0,99190.0,0.00022428]
[1738692016173,1.82737894,99191.0,99190.0,0.00022428]
[1738692016604,1.82837894,99191.0,99190.0,0.00022428]
[1738692017007,1.82537894,99191.0,99190.0,0.00022428]
[1738692017382,1.82637894,99191.0,99190.0,0.00022428]
[1738692017605,1.82537894,99191.0,99190.0,0.00022428]
[1738692017847,1.82837894,99191.0,99190.0,0.00022428]
[1738692018384,1.85835979,99191.0,99190.0,0.00022428]
[1738692022375,1.70835979,99191.0,99190.0,0.00022428]
[1738692022820,0.05713679,99191.0,99190.0,0.00022428]
[1738692023028,0.20835979,99191.0,99190.0,0.00022428]
[1738692023229,1.70435979,99191.0,99190.0,0.00022428]
[1738692023436,1.67437894,99191.0,99190.0,0.00022428]
[1738692026136,1.52315594,99191.0,99190.0,0.00022428]
[1738692026352,0.17437894,99191.0,99190.0,0.00022428]
[1738692026562,0.19366755,99191.0,99190.0,0.00022428]
[1738692026795,1.69366755,99191.0,99190.0,0.00022428]
[1738692026998,1.65566359,99191.0,99190.0,0.00022428]
[1738692030234,0.00444059,99191.0,99190.0,0.00022428]
[1738692030434,9e-07,99191.0,99190.0,0.15144828]
[1738692030664,0.00444059,99191.0,99190.0,0.15144828]
[1738692037583,0.00444059,99191.0,99190.0,0.25383334]
[1738692040431,0.00444059,99191.0,99190.0,0.00022428]
[1738692040725,0.15566359,99191.0,99190.0,0.00022428]
[1738692041606,1.65566359,99191.0,99190.0,0.00022428]
[1738692042184,1.66584541,99191.0,99190.0,0.00022428]
[1738692042389,0.16584541,99191.0,99190.0,0.00022428]
[1738692042808,0.15566359,99191.0,99190.0,0.00022428]
[1738692043013,1.65566359,99191.0,99190.0,0.00022428]
[1738692043216,1.75815831,99191.0,99190.0,0.00022428]
[1738692043481,2.16014337,99191.0,99190.0,2.8e-07]
[1738692043688,0.32869269,99171.0,99157.0,0.08059438]
[1738692043802,0.44107775,99171.0,99170.0,0.00036502]
[1738692044001,0.54357247,99171.0,99170.0,0.00036502]
[1738692044258,0.44107775,99171.0,99170.0,0.00036502]
[1738692044419,1.94107775,99171.0,99170.0,0.00036502]
[1738692045986,1.94707775,99171.0,99170.0,0.00036502]
[1738692046344,1.97870146,99171.0,99170.0,0.00036502]
[1738692046750,1.95901525,99171.0,99170.0,0.00036502]
[1738692046924,2.06150997,99171.0,99170.0,0.00036502]
[1738692048967,2.06150997,99171.0,99170.0,2e-08]
[1738692049165,0.01443969,99152.0,99136.0,0.08059438]
[1738692049374,0.57390675,99152.0,99136.0,0.08059438]
[1738692049795,2.17390675,99152.0,99136.0,0.08059438]
[1738692050005,2.27640147,99152.0,99136.0,0.08059438]
[1738692050193,2.17640147,99152.0,99136.0,0.08059438]
[1738692050607,2.06330675,99152.0,99136.0,0.08059438]
[1738692050811,2.08330675,99152.0,99136.0,0.08059438]
[1738692051587,2.10016788,99152.0,99136.0,0.08059438]
[1738692051758,2.09316788,99152.0,99127.0,0.00022407]
[1738692051976,2.09216788,99152.0,99127.0,0.00022407]
[1738692052169,2.2016626,99152.0,99127.0,0.00022407]
[1738692052370,2.10216788,99152.0,99127.0,0.00022407]
[1738692052930,2.09916788,99152.0,99127.0,0.00022407]
[1738692053086,2.10116788,99152.0,99127.0,0.00022407]
[1738692053691,2.09916788,99152.0,99127.0,0.00022407]
[1738692054012,2.2016626,99152.0,99127.0,0.00022407]
[1738692054793,2.1946626,99152.0,99127.0,0.00022407]
[1738692055225,2.2046626,99152.0,99127.0,0.00022407]
[1738692055424,2.21622075,99152.0,99127.0,0.00022407]
[1738692055634,2.21322075,99152.0,99127.0,0.00022407]
[1738692055803,2.22122075,99152.0,99127.0,0.00022407]
[1738692056009,2.22422075,99152.0,99127.0,0.00022407]
[1738692058313,2.12172603,99152.0,99127.0,0.00022407]
[1738692058534,2.11172603,99152.0,99127.0,0.00022407]
[1738692058684,2.12172603,99152.0,99127.0,0.00022407]
[1738692059416,2.10316788,99152.0,99127.0,0.00022407]
[1738692060594,1.97036788,99152.0,99127.0,0.00022407]
[1738692060799,1.81036788,99152.0,99127.0,0.00022407]
[1738692061062,1.68498282,99152.0,99134.0,0.201747]
[1738692061179,1.68498282,99152.0,99145.0,0.0756]
[1738692061382,1.83498282,99152.0,99145.0,0.0756]
[1738692061588,1.83198282,99152.0,99145.0,0.0756]
[1738692061786,1.83198282,99152.0,99133.0,0.15131]
[1738692062037,1.82498282,99152.0,99139.0,0.0752]
[1738692062397,1.82898282,99152.0,99139.0,0.0752]
[1738692062602,1.82798282,99152.0,99139.0,0.0752]